lending/lending_fUSD_20250508
["ID","MTS","AMOUNT","RATE_DAILY","PERIOD"]
[360305813,1746735053263,-151.0,0.0002959,7]
[360305814,1746735053273,-151.0,0.0002959,7]
[360305815,1746735053283,-151.0,0.0002959,7]
[360305816,1746735053293,-151.0,0.0002959,7]
[360305817,1746735053302,-151.0,0.0002959,7]
[360305818,1746735053314,-151.0,0.0002959,7]
[360305819,1746735053324,-151.0,0.0002959,7]
[360305820,1746735053333,-151.0,0.0002959,7]
[360305821,1746735053344,-151.0,0.0002959,7]
[360305822,1746735053353,-151.0,0.0002959,7]
[360305823,1746735053362,-151.0,0.0002959,7]
[360305824,1746735053372,-151.0,0.0002959,7]
[360305825,1746735053382,-151.0,0.0002959,7]
[360305826,1746735053391,-311.524396,0.0002959,7]
[360305827,1746735053401,-311.524396,0.0002959,7]
[360305828,1746735053410,-199.95928,0.0002959,7]
[360305829,1746735053420,-199.95928,0.0002959,7]
[360305830,1746735053429,-151.0,0.0002959,7]
[360305831,1746735053439,-151.0,0.0002959,7]
[360305832,1746735053449,-212.731297,0.0002959,7]
[360305833,1746735053459,-365.77768,0.0002959,7]
[360305834,1746735053469,-365.77768,0.0002959,7]
[360305835,1746735053478,-263.88703,0.0002959,7]
[360305836,1746735053487,-263.88703,0.0002959,7]
[360305837,1746735053497,-45864.5481752,0.0002959,3]
[360305838,1746735053506,-1035.50121158,0.00029592,15]
[360305839,1746735053515,-151.0,0.00029593,7]
[360305840,1746735053525,-151.0,0.00029593,7]
[360305841,1746735053535,-151.0,0.00029593,7]
[360305842,1746735053545,-151.0,0.00029593,7]
[360305843,1746735053554,-211.854902,0.00029593,7]
[360305844,1746735053564,-151.0,0.00029593,7]
[360305845,1746735053574,-151.0,0.00029593,7]
[360305846,1746735053584,-279.354131,0.00029593,7]
[360305847,1746735053593,-151.0,0.00029593,7]
[360305848,1746735053603,-151.0,0.00029593,7]
[360305849,1746735053612,-151.0,0.00029593,7]
[360305850,1746735053622,-151.0,0.00029593,7]
[360305851,1746735053631,-242.52099,0.00029593,7]
[360305852,1746735053640,-151.0,0.00029593,7]
[360305853,1746735053650,-151.0,0.00029593,7]
[360305854,1746735053660,-151.0,0.00029593,7]
[360305855,1746735053669,-311.524396,0.00029593,7]
[360305856,1746735053679,-311.524396,0.00029593,7]
[360305857,1746735053688,-311.524396,0.00029593,7]
[360305858,1746735053698,-311.524396,0.00029593,7]
[360305859,1746735053707,-311.524396,0.00029593,7]
[360305860,1746735053717,-311.524396,0.00029593,7]
[360305861,1746735053726,-199.95928,0.00029593,7]
[360305862,1746735053736,-199.95928,0.00029593,7]
[360305863,1746735053746,-199.95928,0.00029593,7]
[360305864,1746735053756,-199.95928,0.00029593,7]
[360305865,1746735053766,-151.0,0.00029593,7]
[360305866,1746735053776,-151.0,0.00029593,7]
[360305867,1746735053786,-365.77768,0.00029593,7]
[360305868,1746735053796,-365.77768,0.00029593,7]
[360305869,1746735053807,-365.77768,0.00029593,7]
[360305870,1746735053817,-365.77768,0.00029593,7]
[360305871,1746735053827,-365.77768,0.00029593,7]
[360305872,1746735053836,-365.77768,0.00029593,7]
[360305873,1746735053846,-263.88703,0.00029593,7]
[360305874,1746735053856,-263.88703,0.00029593,7]
[360305875,1746735053866,-263.88703,0.00029593,7]
[360305876,1746735053876,-263.887036,0.00029593,7]
[360305877,1746735053886,-151.0,0.00029594,7]
[360305878,1746735053895,-153.213404,0.00029594,7]
[360305879,1746735053904,-395.918671,0.00029594,7]
[360305880,1746735053914,-151.0,0.00029594,7]
[360305881,1746735053924,-255.51258,0.00029594,7]
[360305882,1746735053933,-255.51258,0.00029594,7]
[360305883,1746735053943,-151.0,0.00029595,7]
[360305884,1746735053953,-151.0,0.00029595,7]
[360305885,1746735053962,-151.0,0.00029595,7]
[360305886,1746735053972,-151.0,0.00029595,7]
[360305887,1746735053982,-151.0,0.00029595,7]
[360305888,1746735053991,-151.0,0.00029595,7]
[360305889,1746735054001,-151.0,0.00029595,7]
[360305890,1746735054011,-244.87194,0.00029595,7]
[360305891,1746735054021,-311.524396,0.00029595,7]
[360305892,1746735054031,-311.524386,0.00029595,7]
[360305893,1746735054041,-151.0,0.00029595,7]
[360305894,1746735054052,-365.77768,0.00029595,7]
[360305895,1746735054062,-365.777673,0.00029595,7]
[360305896,1746735054072,-151.0,0.00029599,7]
[360305897,1746735054085,-395.918671,0.00029599,7]
[360305898,1746735054094,-151.0,0.00029599,7]
[360305899,1746735054104,-202.099992,0.00029599,7]
[360305900,1746735054114,-258.608104,0.00029599,7]
[360305901,1746735054123,-151.0,0.00029599,7]
[360305902,1746735054133,-255.51258,0.00029599,7]
[360305903,1746735054143,-255.51258,0.00029599,7]
[360305904,1746735054153,-151.0,0.00029599,7]
[360305905,1746735054163,-151.0,0.00029599,7]
[360305906,1746735054174,-151.0,0.000296,7]
[360305907,1746735054184,-151.0,0.000296,7]
[360305908,1746735054194,-151.0,0.000296,7]
[360305909,1746735054203,-151.0,0.000296,7]
[360305910,1746735054213,-151.0,0.000296,7]
[360305911,1746735054223,-151.0,0.000296,7]
[360305912,1746735054233,-151.0,0.000296,7]
[360305913,1746735054242,-151.0,0.000296,7]
[360305914,1746735054251,-151.242857,0.000296,7]
[360305915,1746735054261,-151.242857,0.000296,7]
[360305916,1746735054271,-151.0,0.000296,7]
[360305917,1746735054280,-150.0,0.000296,2]
[360305918,1746735054290,-151.0,0.000296,7]
[360305919,1746735054300,-207.571214,0.000296,7]
[360305920,1746735054311,-151.0,0.000296,7]
[360305921,1746735054321,-52420.39708955,0.000296,2]
[360305922,1746735054331,-500.0,0.00029602,10]
[360305923,1746735054341,-395.918671,0.00029602,7]
[360305924,1746735054351,-395.918671,0.00029602,7]
[360305925,1746735054361,-151.0,0.00029602,7]
[360305926,1746735054371,-151.0,0.00029602,7]
[360305927,1746735054380,-151.0,0.00029602,7]
[360305928,1746735054389,-255.51258,0.00029602,7]
[360305929,1746735054399,-255.51258,0.00029602,7]
[360305930,1746735054409,-151.0,0.00029602,7]
[360305931,1746735054418,-151.0,0.00029602,7]
[360305932,1746735054428,-22932.2740876,0.00029603,3]
[360305933,1746735054438,-248.354459,0.00029603,7]
[360305934,1746735054448,-151.0,0.00029603,7]
[360305935,1746735054458,-395.918671,0.00029603,7]
[360305936,1746735054468,-395.918671,0.00029603,7]
[360305937,1746735054478,-151.0,0.00029603,7]
[360305938,1746735054488,-151.0,0.00029603,7]
[360305939,1746735054498,-151.0,0.00029603,7]
[360305940,1746735054507,-151.0,0.00029603,7]
[360305941,1746735054517,-151.0,0.00029603,7]
[360305942,1746735054527,-151.0,0.00029603,7]
[360305943,1746735054538,-151.0,0.00029603,7]
[360305944,1746735054548,-151.0,0.00029603,7]
[360305945,1746735054557,-151.0,0.00029603,7]
[360305946,1746735054567,-255.51258,0.00029603,7]
[360305947,1746735054577,-255.51258,0.00029603,7]
[360305948,1746735054587,-255.51258,0.00029603,7]
[360305949,1746735054597,-255.51258,0.00029603,7]
[360305950,1746735054607,-175.894483,0.00029603,7]
[360305951,1746735054616,-151.0,0.00029604,7]
[360305952,1746735054626,-168.142662,0.00029604,7]
[360305953,1746735054636,-168.142662,0.00029604,7]
[360305954,1746735054646,-248.354459,0.00029604,7]
[360305955,1746735054656,-395.918671,0.00029604,7]
[360305956,1746735054666,-395.918671,0.00029604,7]
[360305957,1746735054676,-395.918671,0.00029604,7]
[360305958,1746735054685,-151.0,0.00029604,7]
[360305959,1746735054695,-190.443373,0.00029604,7]
[360305960,1746735054705,-190.443373,0.00029604,7]
[360305961,1746735054715,-151.0,0.00029604,7]
[360305962,1746735054725,-151.0,0.00029604,7]
[360305963,1746735054735,-151.0,0.00029604,7]
[360305964,1746735054745,-151.0,0.00029604,7]
[360305965,1746735054755,-151.0,0.00029604,7]
[360305966,1746735054764,-151.0,0.00029604,7]
[360305967,1746735054774,-151.0,0.00029604,7]
[360305968,1746735054784,-255.51258,0.00029604,7]
[360305969,1746735054794,-255.51258,0.00029604,7]
[360305970,1746735054804,-255.51258,0.00029604,7]
[360305971,1746735054815,-255.51258,0.00029604,7]
[360305972,1746735054825,-151.0,0.00029604,7]
[360305973,1746735054835,-151.0,0.00029604,7]
[360305974,1746735054845,-151.0,0.00029609,7]
[360305975,1746735054855,-168.142662,0.00029609,7]
[360305976,1746735054865,-168.142662,0.00029609,7]
[360305977,1746735054876,-190.443373,0.00029609,7]
[360305978,1746735054886,-190.443373,0.00029609,7]
[360305979,1746735054896,-151.0,0.00029609,7]
[360305980,1746735054906,-151.0,0.00029609,7]
[360305981,1746735054916,-151.0,0.00029609,7]
[360305982,1746735054926,-248.354459,0.00029612,7]
[360305983,1746735054936,-395.918665,0.00029612,7]
[360305984,1746735054946,-151.0,0.00029612,7]
[360305985,1746735054956,-151.0,0.00029612,7]
[360305986,1746735054966,-151.0,0.00029613,7]
[360305987,1746735054977,-168.142662,0.00029613,7]
[360305988,1746735055264,-168.142662,0.00029613,7]
[360305989,1746735055275,-168.142662,0.00029613,7]
[360305990,1746735055286,-168.142662,0.00029613,7]
[360305991,1746735055295,-248.354459,0.00029613,7]
[360305992,1746735055306,-248.354459,0.00029613,7]
[360305993,1746735055320,-151.0,0.00029613,7]
[360305994,1746735055331,-151.0,0.00029613,7]
[360305995,1746735055340,-190.443373,0.00029613,7]
[360305996,1746735055350,-190.443373,0.00029613,7]
[360305997,1746735055360,-190.443373,0.00029613,7]
[360305998,1746735055370,-190.443373,0.00029613,7]
[360305999,1746735055380,-151.0,0.00029613,7]
[360306000,1746735055390,-151.0,0.00029613,7]
[360306001,1746735055400,-250.649879,0.00029613,7]
[360306002,1746735055410,-151.0,0.00029613,7]
[360306003,1746735055420,-286.115884,0.00029613,7]
[360306004,1746735055429,-151.0,0.00029613,7]
[360306005,1746735055439,-151.0,0.00029613,7]
[360306006,1746735055450,-151.0,0.00029613,7]
[360306007,1746735055463,-151.0,0.00029613,7]
[360306008,1746735055472,-151.0,0.00029614,7]
[360306009,1746735055482,-151.0,0.00029614,7]
[360306010,1746735055491,-151.0,0.00029614,7]
[360306011,1746735055501,-151.0,0.00029614,7]
[360306012,1746735055510,-526.68244,0.00029614,7]
[360306013,1746735055519,-526.68244,0.00029614,7]
[360306014,1746735055529,-180.809822,0.00029614,7]
[360306015,1746735055539,-151.0,0.00029614,7]
[360306016,1746735055548,-151.0,0.00029614,7]
[360306017,1746735055558,-161.561511,0.00029614,7]
[360306018,1746735055567,-161.561511,0.00029614,7]
[360306019,1746735055576,-168.142662,0.00029614,7]
[360306020,1746735055585,-168.142662,0.00029614,7]
[360306021,1746735055595,-248.354459,0.00029614,7]
[360306022,1746735055604,-151.0,0.00029614,7]
[360306023,1746735055614,-190.443373,0.00029614,7]
[360306024,1746735055623,-190.443373,0.00029614,7]
[360306025,1746735055635,-151.0,0.00029614,7]
[360306026,1746735055645,-151.0,0.00029614,7]
[360306027,1746735055654,-151.0,0.00029614,7]
[360306028,1746735055663,-500.0,0.00029616,2]
[360306029,1746735055672,-500.0,0.00029616,2]
[360306030,1746735055683,-500.0,0.00029616,2]
[360306031,1746735055693,-500.0,0.00029616,2]
[360306032,1746735055703,-521.0985703,0.00029616,2]
[360306033,1746735055713,-160.47047564,0.00029616,2]
[360306034,1746735055723,-151.0,0.00029619,7]
[360306035,1746735055733,-151.0,0.00029619,7]
[360306036,1746735055743,-151.0,0.00029619,7]
[360306037,1746735055752,-151.0,0.00029619,7]
[360306038,1746735055762,-526.68244,0.00029619,7]
[360306039,1746735055772,-526.68244,0.00029619,7]
[360306040,1746735055782,-151.0,0.00029619,7]
[360306041,1746735055792,-151.0,0.00029619,7]
[360306042,1746735055801,-161.561511,0.00029619,7]
[360306043,1746735055811,-161.561511,0.00029619,7]
[360306044,1746735055820,-168.142662,0.00029619,7]
[360306045,1746735055829,-168.142662,0.00029619,7]
[360306046,1746735055839,-248.354459,0.00029619,7]
[360306047,1746735055848,-248.354459,0.00029619,7]
[360306048,1746735055857,-151.0,0.00029619,7]
[360306049,1746735055867,-190.443373,0.00029619,7]
[360306050,1746735055877,-190.443373,0.00029619,7]
[360306051,1746735055886,-151.0,0.00029619,7]
[360306052,1746735055896,-151.0,0.00029619,7]
[360306053,1746735055906,-151.0,0.00029619,7]
[360306054,1746735055916,-151.0,0.00029624,7]
[360306055,1746735055927,-151.0,0.00029624,7]
[360306056,1746735055938,-151.0,0.00029624,7]
[360306057,1746735055947,-151.0,0.00029624,7]
[360306058,1746735055958,-151.0,0.00029624,7]
[360306059,1746735055969,-526.68244,0.00029624,7]
[360306060,1746735055980,-526.68244,0.00029624,7]
[360306061,1746735055991,-526.68244,0.00029624,7]
[360306062,1746735056002,-526.68244,0.00029624,7]
[360306063,1746735056011,-151.0,0.00029624,7]
[360306064,1746735056021,-151.0,0.00029624,7]
[360306065,1746735056031,-151.0,0.00029624,7]
[360306066,1746735056041,-151.0,0.00029624,7]
[360306067,1746735056051,-161.561511,0.00029624,7]
[360306068,1746735056061,-161.561511,0.00029624,7]
[360306069,1746735056072,-161.561511,0.00029624,7]
[360306070,1746735056083,-161.561511,0.00029624,7]
[360306071,1746735056094,-161.561511,0.00029624,7]
[360306072,1746735056105,-161.561511,0.00029624,7]
[360306073,1746735056115,-12260.86363296,0.00029624,21]
[360306074,1746735056126,-162.62,0.00029627,2]
[360306075,1746735056136,-151.0,0.00029629,7]
[360306076,1746735056147,-526.68244,0.0002963,7]
[360306077,1746735056157,-526.68244,0.0002963,7]
[360306078,1746735056167,-151.0,0.0002963,7]
[360306079,1746735056177,-161.561511,0.0002963,7]
[360306080,1746735056187,-161.561511,0.0002963,7]
[360306081,1746735056197,-526.68244,0.00029631,7]
[360306082,1746735056207,-526.68244,0.00029631,7]
[360306083,1746735056216,-248.354459,0.00029631,7]
[360306084,1746735056226,-248.354459,0.00029631,7]
[360306085,1746735056236,-193.290319,0.00029631,7]
[360306086,1746735056246,-151.0,0.00029631,7]
[360306087,1746735056256,-151.0,0.00029634,7]
[360306088,1746735056266,-151.0,0.00029634,7]
[360306089,1746735056276,-151.0,0.00029634,7]
[360306090,1746735056287,-291.777104,0.00029634,7]
[360306091,1746735056296,-151.242857,0.00029634,7]
[360306092,1746735056305,-151.242857,0.00029634,7]
[360306093,1746735056315,-151.0,0.00029634,7]
[360306094,1746735056325,-526.68244,0.00029634,7]
[360306095,1746735056335,-526.68244,0.00029634,7]
[360306096,1746735056345,-526.68244,0.00029634,7]
[360306097,1746735056355,-526.68244,0.00029634,7]
[360306098,1746735056365,-151.0,0.00029634,7]
[360306099,1746735056375,-151.0,0.00029634,7]
[360306100,1746735056385,-161.561511,0.00029634,7]
[360306101,1746735056395,-161.561511,0.00029634,7]
[360306102,1746735056405,-161.561511,0.00029634,7]
[360306103,1746735056414,-161.561511,0.00029634,7]
[360306104,1746735056424,-190.443373,0.00029634,7]
[360306105,1746735056434,-190.443373,0.00029634,7]
[360306106,1746735056443,-151.0,0.00029634,7]
[360306107,1746735056453,-151.0,0.00029634,7]
[360306108,1746735056463,-22932.2740876,0.00029634,3]
[360306109,1746735056473,-168.142662,0.00029635,7]
[360306110,1746735056482,-168.142662,0.00029635,7]
[360306111,1746735056492,-2110.0,0.00029637,2]
[360306112,1746735056501,-526.68244,0.00029639,7]
[360306113,1746735056511,-526.68244,0.00029639,7]
[360306114,1746735056522,-151.0,0.00029639,7]
[360306115,1746735056532,-298.987244,0.00029639,7]
[360306116,1746735056542,-161.561511,0.00029639,7]
[360306117,1746735056551,-161.561511,0.00029639,7]
[360306118,1746735056561,-151.0,0.0002964,7]
[360306119,1746735056570,-297.739342,0.0002964,7]
[360306120,1746735056580,-526.68244,0.0002964,7]
[360306121,1746735056590,-526.68245,0.0002964,7]
[360306122,1746735056601,-161.561511,0.0002964,7]
[360306123,1746735056611,-161.561518,0.0002964,7]
[360306124,1746735056621,-248.354459,0.0002964,7]
[360306125,1746735056633,-248.354459,0.0002964,7]
[360306126,1746735056644,-151.0,0.0002964,7]
[360306127,1746735056654,-152.001865,0.00029641,7]
[360306128,1746735056664,-151.0,0.00029644,7]
[360306129,1746735056676,-151.0,0.00029644,7]
[360306130,1746735056686,-151.0,0.00029644,7]
[360306131,1746735056697,-151.0,0.00029644,7]
[360306132,1746735056708,-151.0,0.00029644,7]
[360306133,1746735056718,-151.242857,0.00029644,7]
[360306134,1746735056729,-151.242857,0.00029644,7]
[360306135,1746735056739,-151.0,0.00029644,7]
[360306136,1746735056748,-190.443373,0.00029644,7]
[360306137,1746735056758,-190.443373,0.00029644,7]
[360306138,1746735056770,-151.0,0.00029644,7]
[360306139,1746735056780,-151.0,0.00029644,7]
[360306140,1746735056790,-151.0,0.00029648,7]
[360306141,1746735056801,-151.0,0.00029648,7]
[360306142,1746735056810,-151.0,0.00029648,7]
[360306143,1746735056820,-151.0,0.00029649,7]
[360306144,1746735056830,-151.0,0.0002965,7]
[360306145,1746735056839,-151.0,0.0002965,7]
[360306146,1746735056850,-151.0,0.0002965,7]
[360306147,1746735056861,-151.0,0.0002965,7]
[360306148,1746735056872,-295.99110407,0.0002965,7]
[360306149,1746735056882,-151.242857,0.0002965,7]
[360306150,1746735056892,-151.242857,0.0002965,7]
[360306151,1746735056902,-151.242857,0.0002965,7]
[360306152,1746735056912,-151.242857,0.0002965,7]
[360306153,1746735056922,-151.242857,0.0002965,7]
[360306154,1746735056934,-151.242857,0.0002965,7]
[360306155,1746735056945,-151.0,0.0002965,7]
[360306156,1746735056954,-173.27003,0.0002965,7]
[360306157,1746735056964,-151.0,0.0002965,7]
[360306158,1746735056973,-151.242857,0.00029655,7]
[360306159,1746735056984,-151.242857,0.00029655,7]
[360306160,1746735056994,-151.0,0.0002966,7]
[360306161,1746735057003,-151.0,0.00029662,7]
[360306162,1746735057012,-151.242857,0.00029662,7]
[360306163,1746735057022,-151.242857,0.00029662,7]
[360306164,1746735057031,-151.0,0.00029664,7]
[360306165,1746735057041,-151.242857,0.00029665,7]
[360306166,1746735057050,-151.242857,0.00029665,7]
[360306167,1746735057059,-168.142662,0.00029665,7]
[360306168,1746735057069,-168.142662,0.00029665,7]
[360306169,1746735057079,-151.0,0.0002967,7]
[360306170,1746735057091,-151.242857,0.00029672,7]
[360306171,1746735057100,-151.242865,0.00029672,7]
[360306172,1746735057109,-151.0,0.00029675,7]
[360306173,1746735057118,-151.0,0.0002968,7]
[360306174,1746735057129,-151.0,0.0002968,7]
[360306175,1746735057138,-151.0,0.0002968,7]
[360306176,1746735057147,-151.0,0.0002968,7]
[360306177,1746735057157,-151.0,0.0002968,7]
[360306178,1746735057166,-820.419904,0.0002968,7]
[360306179,1746735057176,-151.0,0.0002968,7]
[360306180,1746735057185,-160.420499,0.00029682,7]
[360306181,1746735057194,-820.419904,0.00029682,7]
[360306182,1746735057204,-248.354459,0.00029682,7]
[360306183,1746735057213,-248.354463,0.00029682,7]
[360306184,1746735057222,-151.0,0.00029682,7]
[360306185,1746735057231,-151.0,0.00029684,7]
[360306186,1746735057241,-151.0,0.0002969,7]
[360306187,1746735057251,-151.0,0.0002969,7]
[360306188,1746735057262,-151.0,0.0002969,7]
[360306189,1746735057272,-190.443373,0.0002969,7]
[360306190,1746735057281,-190.443373,0.0002969,7]
[360306191,1746735057291,-151.0,0.0002969,7]
[360306192,1746735057301,-165.752895,0.0002969,7]
[360306193,1746735057311,-820.419904,0.00029693,7]
[360306194,1746735057321,-762.0,0.00029699,2]
[360306195,1746735057331,-151.0,0.000297,7]
[360306196,1746735057340,-177.035453,0.000297,7]
[360306197,1746735057349,-151.0,0.000297,7]
[360306198,1746735057359,-168.142662,0.000297,7]
[360306199,1746735057369,-168.142662,0.000297,7]
[360306200,1746735057379,-159.0,0.000297,21]
[360306201,1746735057389,-820.419902,0.00029701,7]
[360306202,1746735057399,-151.0,0.00029705,7]
[360306203,1746735057408,-151.0,0.00029705,7]
[360306204,1746735057418,-151.0,0.00029715,7]
[360306205,1746735057428,-151.0,0.00029715,7]
[360306206,1746735057438,-151.0,0.00029722,7]
[360306207,1746735057447,-210.80222,0.00029722,7]
[360306208,1746735057457,-151.0,0.00029732,7]
[360306209,1746735057467,-150.0,0.00029744,2]
[360306210,1746735057477,-341.07908319,0.00029744,2]
[360306211,1746735057487,-160.47047564,0.00029781,2]
[360306212,1746735057496,-190.443373,0.000298,7]
[360306213,1746735057506,-190.443369,0.000298,7]
[360306214,1746735057516,-151.0,0.000298,7]
[360306215,1746735057526,-151.0,0.00029855,7]
[360306216,1746735057536,-3000.0,0.00029874,5]
[360306217,1746735057546,-151.0,0.00029876,7]
[360306218,1746735057556,-22932.2740876,0.0002989,3]
[360306219,1746735057568,-2000.0,0.000299,2]
[360306220,1746735057579,-2000.0,0.000299,2]
[360306221,1746735057588,-2000.0,0.000299,2]
[360306222,1746735057598,-2000.0,0.000299,2]
[360306223,1746735057608,-2000.0,0.000299,2]
[360306224,1746735057617,-2000.0,0.000299,2]
[360306225,1746735057627,-2000.0,0.000299,2]
[360306226,1746735057757,-2000.0,0.000299,2]
[360306227,1746735057768,-2000.0,0.000299,2]
[360306228,1746735057778,-2000.0,0.000299,2]
[360306229,1746735057787,-5500.0,0.000299,10]
[360306230,1746735057796,-2000.0,0.00029956,2]
[360306231,1746735057805,-2000.0,0.00029956,2]
[360306232,1746735057815,-2000.0,0.00029956,2]
[360306233,1746735057825,-2000.0,0.00029956,2]
[360306234,1746735057835,-22932.2740876,0.0002999,3]
[360306235,1746735057844,-500.0,0.00029998,10]
[360306236,1746735057854,-1155.68706729,0.00029998,2]
[360306237,1746735057863,-205.9897331,0.00029998,2]
[360306238,1746735057873,-1318.41,0.00029999,2]
[360306239,1746735057883,-1000.0,0.00029999,2]
[360306240,1746735057892,-300.0,0.00029999,10]
[360306241,1746735057902,-762.0,0.00029999,2]
[360306242,1746735057911,-476.36982897,0.00029999,2]
[360306243,1746735057921,-1000.0,0.0003,2]
[360306244,1746735057930,-2000.0,0.0003,14]
[360306245,1746735057939,-354.2207346,0.0003,5]
[360306246,1746735057949,-2245.47,0.0003,2]
[360306247,1746735057959,-3500.0,0.0003,2]
[360306248,1746735057969,-900.0,0.0003,15]
[360306249,1746735057979,-195.33239347,0.0003,7]
[360306250,1746735057990,-168.142662,0.0003,7]
[360306251,1746735058000,-168.142665,0.0003,7]
[360306252,1746735058009,-2000.0,0.0003,2]
[360306253,1746735058019,-158.23,0.0003,2]
[360306254,1746735058028,-158.23,0.0003,2]
[360306255,1746735058038,-2000.0,0.0003,2]
[360306256,1746735058047,-2018.1,0.0003,2]
[360306257,1746735058057,-500.0,0.0003,11]
[360306258,1746735058067,-500.0,0.0003,11]
[360306259,1746735058076,-500.0,0.0003,11]
[360306260,1746735058088,-500.0,0.0003,11]
[360306261,1746735058097,-500.0,0.0003,11]
[360306262,1746735058107,-500.0,0.0003,2]
[360306263,1746735058117,-159.0,0.0003,22]
[360306264,1746735058127,-213.0,0.0003,2]
[360306265,1746735058136,-200.0,0.0003,2]
[360306266,1746735058145,-500.0,0.0003,11]
[360306267,1746735058155,-500.0,0.0003,11]
[360306268,1746735058165,-500.0,0.0003,11]
[360306269,1746735058175,-500.0,0.0003,11]
[360306270,1746735058185,-500.0,0.0003,11]
[360306271,1746735058194,-1702.0,0.0003,2]
[360306272,1746735058203,-558.45984871,0.00030001,10]
[360306273,1746735058213,-500.0,0.00030027,2]
[360306274,1746735058223,-500.0,0.00030027,30]
[360306275,1746735058232,-500.0,0.00030055,2]
[360306276,1746735058242,-500.0,0.00030055,30]
[360306277,1746735058253,-250.0,0.0003007,2]
[360306278,1746735058263,-196.0,0.00030082,2]
[360306279,1746735058272,-500.0,0.00030082,2]
[360306280,1746735058282,-500.0,0.00030082,30]
[360306281,1746735058291,-209.0,0.00030096,2]
[360306282,1746735058301,-245.0,0.00030096,2]
[360306283,1746735058310,-246.0,0.00030096,2]
[360306284,1746735058320,-157.0,0.000301,2]
[360306285,1746735058329,-1500.0,0.000301,2]
[360306286,1746735058339,-500.0,0.0003011,2]
[360306287,1746735058348,-500.0,0.0003011,30]
[360306288,1746735058357,-255.0,0.00030115,2]
[360306289,1746735058367,-163.92868873,0.0003013,2]
[360306290,1746735058377,-903.75432054,0.0003013,3]
[360306291,1746735058387,-4934.33907497,0.0003013,2]
[360306292,1746735058397,-500.0,0.00030136,10]
[360306293,1746735058407,-300.0,0.00030136,5]
[360306294,1746735058416,-263.87,0.00030136,2]
[360306295,1746735058426,-200.0,0.00030136,2]
[360306296,1746735058436,-200.0,0.00030136,2]
[360306297,1746735058445,-332.23,0.00030136,30]
[360306298,1746735058455,-20000.0,0.00030137,3]
[360306299,1746735058465,-600.0,0.00030137,2]
[360306300,1746735058474,-1000.0,0.00030137,30]
[360306301,1746735058484,-1000.0,0.00030137,30]
[360306302,1746735058494,-198.68,0.00030137,2]
[360306303,1746735058504,-1030.0,0.00030137,30]
[360306304,1746735058514,-150.0,0.00030137,2]
[360306305,1746735058523,-2000.0,0.00030137,7]
[360306306,1746735058533,-2000.0,0.00030137,7]
[360306307,1746735058543,-2000.0,0.00030137,7]
[360306308,1746735058553,-2000.0,0.00030137,7]
[360306309,1746735058563,-2000.0,0.00030137,7]
[360306310,1746735058573,-2000.0,0.00030137,7]
[360306311,1746735058582,-2000.0,0.00030137,7]
[360306312,1746735058592,-2000.0,0.00030137,7]